bitfinex-derivatives/quotes_SOLF0:USTF0_20240816
["timestamp","ask_amount","ask_price","bid_price","bid_amount"]
[1723795053220,18.37055605,144.64,144.63,11.01079766]
[1723795054427,3.4567,144.63,144.61,0.05170253]
[1723795054716,10.63,144.62,144.61,0.05170253]
[1723795054910,10.63,144.62,144.61,2.46357548]
[1723795055110,14.0868,144.62,144.61,2.46357548]
[1723795055721,14.0868,144.62,144.61,2.45667648]
[1723795058836,14.0868,144.62,144.61,2.45639173]
[1723795061325,10.63,144.62,144.61,2.45639173]
[1723795062720,14.0868,144.62,144.61,2.45639173]
[1723795062948,14.0868,144.62,144.61,0.05170253]
[1723795063127,14.0868,144.62,144.61,2.45638803]
[1723795063527,14.0868,144.62,144.61,0.05170253]
[1723795063717,14.0868,144.62,144.61,2.4564097]
[1723795067429,14.0868,144.62,144.61,2.4574591]
[1723795067925,14.0868,144.62,144.61,2.457395]
[1723795071821,14.0868,144.62,144.61,2.45772215]
[1723795072020,14.0868,144.62,144.61,11.04820737]
[1723795072222,10.63,144.62,144.61,11.04820737]
[1723795072622,3.4568,144.63,144.61,11.04820737]
[1723795072829,14.0868,144.63,144.62,10.99650484]
[1723795073022,14.0868,144.63,144.62,2.40601962]
[1723795076023,3.4568,144.62,144.61,0.05170253]
[1723795076231,14.0868,144.62,144.61,2.45706817]
[1723795077225,14.0868,144.62,144.61,11.04584787]
[1723795077425,3.4567,144.63,144.61,11.04584787]
[1723795077728,14.0867,144.63,144.62,2.40536564]
[1723795082127,3.4568,144.62,144.61,0.05170253]
[1723795082329,14.0868,144.62,144.61,2.45663739]
[1723795083266,14.0868,144.62,144.61,0.05170253]
[1723795083424,14.0868,144.62,144.61,2.45661853]
[1723795087337,3.4568,144.62,144.61,2.45661853]
[1723795087536,14.0868,144.62,144.61,2.45508135]
[1723795087833,14.0868,144.62,144.61,2.45518951]
[1723795088435,3.4567,144.63,144.61,2.45518951]
[1723795088734,14.0867,144.63,144.62,2.40348698]
[1723795091562,14.0867,144.63,144.62,2.40304786]
[1723795091739,14.0867,144.63,144.62,10.98497009]
[1723795091969,14.0867,144.63,144.61,0.05170253]
[1723795092145,14.0867,144.63,144.62,10.98612698]
[1723795092337,10.63,144.63,144.62,10.98612698]
[1723795093039,14.0866,144.63,144.62,10.98612698]
[1723795093244,14.0866,144.63,144.62,2.40342687]
[1723795093446,14.0866,144.63,144.62,10.9882089]
[1723795094449,4.28425605,144.64,144.62,10.9882089]
[1723795094651,4.28425605,144.64,144.63,10.98713183]
[1723795097443,0.02425605,144.64,144.63,10.98713183]
[1723795097645,14.0856,144.68,144.63,10.98713183]
[1723795097944,14.89,144.68,144.64,10.98713183]
[1723795098146,14.89,144.68,144.65,10.98713183]
[1723795098455,14.89,144.68,144.66,2.40342687]
[1723795098752,14.89,144.68,144.67,2.40342687]
[1723795099147,14.89,144.68,144.66,0.04791987]
[1723795100851,3.4556,144.67,144.66,0.04791987]
[1723795103454,3.4567,144.63,144.58,3.4576]
[1723795103660,10.63,144.6,144.59,2.4558]
[1723795104060,10.63,144.6,144.59,24.0822191]
[1723795104357,10.63,144.6,144.59,2.4558]
[1723795104561,10.63,144.6,144.59,11.03359386]
[1723795108178,10.63,144.6,144.59,2.4558]
[1723795108366,10.63,144.6,144.59,11.03639233]
[1723795111162,10.63,144.6,144.59,13.43171695]
[1723795112286,10.63,144.6,144.59,11.03639233]
[1723795112466,10.63,144.6,144.59,13.42944653]
[1723795112660,0.04389543,144.61,144.59,16.88704653]
[1723795112857,0.04389543,144.61,144.6,10.97364653]
[1723795116570,0.04389543,144.61,144.6,8.57845086]
[1723795116868,0.04389543,144.61,144.6,10.97231958]
[1723795117070,0.04389543,144.61,144.6,2.39359788]
[1723795117269,0.04389543,144.61,144.6,10.96545984]
[1723795117664,14.93389543,144.61,144.6,10.96545984]
[1723795119770,18.39099543,144.61,144.6,10.96545984]
[1723795120691,18.39099543,144.61,144.58,0.04701096]
[1723795120970,18.39099543,144.61,144.59,10.96884375]
[1723795121167,18.39099543,144.61,144.6,2.39429367]
[1723795121566,18.39099543,144.61,144.6,10.97071419]
[1723795121873,14.93389543,144.61,144.6,10.97071419]
[1723795122671,14.93389543,144.61,144.6,2.39429367]
[1723795122871,14.93389543,144.61,144.6,10.97089145]
[1723795124174,14.93389543,144.61,144.6,2.39429367]
[1723795124870,14.93389543,144.61,144.58,0.04701096]
[1723795125070,14.93389543,144.61,144.59,2.39467728]
[1723795125268,14.93389543,144.61,144.6,2.39467728]
[1723795128976,18.39099543,144.61,144.6,2.39467728]
[1723795129273,14.93389543,144.61,144.58,0.04701096]
[1723795129479,10.63,144.59,144.58,0.04701096]
[1723795129696,10.63,144.59,144.58,8.62637125]
[1723795130071,10.63,144.59,144.58,0.04701096]
[1723795130479,14.0876,144.59,144.58,0.04701096]
[1723795136680,14.0876,144.59,144.54,3.4587]
[1723795136681,3.4578,144.58,144.54,3.4587]
[1723795136881,10.63,144.56,144.55,8.58060125]
[1723795139285,10.63,144.56,144.54,0.05210332]
[1723795139977,3.48221471,144.55,144.54,0.05210332]
[1723795140377,4.31176835,144.57,144.54,0.05210332]
[1723795140583,10.63,144.56,144.54,0.05210332]
[1723795140980,14.0883,144.56,144.54,0.05210332]
[1723795141180,14.0883,144.56,144.55,2.38844577]
[1723795144489,14.0883,144.56,144.54,0.05210332]
[1723795144787,3.44107232,144.55,144.54,0.05210332]
[1723795144986,6.89957232,144.55,144.54,2.43760745]
[1723795146487,6.89957232,144.55,144.54,0.05210332]
[1723795146990,6.89957232,144.55,144.51,2.51]
[1723795147185,10.63,144.52,144.51,2.51]
[1723795147490,10.63,144.52,144.51,4.89585433]
[1723795147686,10.63,144.52,144.51,2.38585433]
[1723795148285,4.30869552,144.53,144.51,2.38585433]
[1723795148485,0.04869552,144.53,144.52,2.38585433]
[1723795149085,14.89,144.55,144.52,3.65175433]
[1723795149288,14.89,144.55,144.53,2.38585433]
[1723795149488,14.89,144.55,144.54,2.38585433]
[1723795150690,4.26,144.55,144.54,2.38585433]
[1723795150993,15.12509794,144.56,144.54,2.38585433]
[1723795151299,15.12509794,144.56,144.53,3.50438281]
[1723795151489,15.12509794,144.56,144.54,2.38377446]
[1723795151790,15.12509794,144.56,144.53,3.50438281]
[1723795151980,15.12509794,144.56,144.54,2.38346176]
[1723795152187,15.12509794,144.56,144.53,3.50438281]
[1723795152395,15.12509794,144.56,144.54,2.38350532]
[1723795152601,15.12509794,144.56,144.53,3.50438281]
[1723795152809,15.12509794,144.56,144.54,2.38357352]
[1723795153096,15.12509794,144.56,144.53,3.50438281]
[1723795153299,15.12509794,144.56,144.54,2.38357498]
[1723795153494,15.12509794,144.56,144.53,3.50438281]
[1723795153793,15.12509794,144.56,144.54,2.38391874]
[1723795153997,15.12509794,144.56,144.53,3.50438281]
[1723795154295,15.12509794,144.56,144.54,2.38388651]
[1723795154496,15.12509794,144.56,144.53,4.77158281]
[1723795154798,15.12509794,144.56,144.54,2.38372182]
[1723795154990,0.23509794,144.56,144.53,4.77158281]
[1723795155190,0.23509794,144.56,144.54,2.38371109]
[1723795155385,0.23509794,144.56,144.53,4.77158281]
[1723795155593,0.23509794,144.56,144.54,2.38378512]
[1723795155793,0.23509794,144.56,144.53,4.77158281]
[1723795156000,0.23509794,144.56,144.54,2.3834129]
[1723795156195,0.23509794,144.56,144.53,4.77158281]
[1723795156388,0.23509794,144.56,144.54,2.38341112]
[1723795156593,0.23509794,144.56,144.53,4.77158281]
[1723795156791,0.23509794,144.56,144.54,2.38333745]
[1723795156999,0.23509794,144.56,144.53,4.77158281]
[1723795157198,0.23509794,144.56,144.54,2.38339188]
[1723795157496,0.23509794,144.56,144.53,4.77158281]
[1723795157696,0.23509794,144.56,144.54,2.38339899]
[1723795157894,0.23509794,144.56,144.53,4.77158281]
[1723795158095,0.23509794,144.56,144.54,2.38311857]
[1723795158400,0.23509794,144.56,144.55,2.3832753]
[1723795158991,3.69339794,144.56,144.53,4.77158281]
[1723795159195,10.63,144.55,144.54,2.38329295]
[1723795159394,10.86509794,144.56,144.54,5.84199295]
[1723795159599,10.86509794,144.56,144.54,3.4587]
[1723795160301,0.23509794,144.56,144.55,2.38294448]
[1723795160699,0.23509794,144.56,144.55,5.84144448]
[1723795162502,10.63,144.58,144.55,2.38294448]
[1723795162700,14.89,144.6,144.56,2.38294448]
[1723795162897,14.89,144.6,144.57,7.09974448]
[1723795163101,18.3474,144.6,144.57,4.7168]
[1723795163301,18.3474,144.6,144.57,1.2589]
[1723795163505,18.39368962,144.6,144.57,1.30804414]
[1723795167309,18.39368962,144.6,144.58,2.38034303]
[1723795167608,18.39368962,144.6,144.57,1.30804414]
[1723795167808,18.39368962,144.6,144.58,2.38028369]
[1723795168004,18.39368962,144.6,144.57,1.30804414]
[1723795168208,18.39368962,144.6,144.58,2.38030332]
[1723795168409,18.39368962,144.6,144.57,1.30804414]
[1723795168609,18.39368962,144.6,144.58,2.38027448]
[1723795168807,18.39368962,144.6,144.57,1.30804414]
[1723795169007,10.63,144.58,144.57,1.30804414]
[1723795169202,10.63,144.58,144.57,3.68853823]
[1723795171902,14.0878,144.58,144.57,2.42963823]
[1723795173922,14.0878,144.58,144.57,0.04914414]
[1723795174108,14.0878,144.58,144.57,2.43124841]
[1723795174307,14.93628962,144.6,144.57,2.43124841]
[1723795174502,14.93628962,144.6,144.58,2.38210427]
[1723795174706,14.93628962,144.6,144.59,2.38210427]
[1723795175709,18.39378962,144.6,144.59,2.38210427]
[1723795176249,18.39378962,144.6,144.57,0.04914414]
[1723795176512,18.39378962,144.6,144.58,2.3814998]
[1723795176712,18.39378962,144.6,144.59,2.3814998]
[1723795177415,18.39378962,144.6,144.59,2.38139718]
[1723795178538,18.39378962,144.6,144.57,0.04914414]
[1723795178719,18.39378962,144.6,144.58,2.38151892]
[1723795178930,18.39378962,144.6,144.57,0.04914414]
[1723795179110,18.39378962,144.6,144.58,2.3815044]
[1723795179316,18.39378962,144.6,144.59,2.3815044]
[1723795181127,14.93628962,144.6,144.59,2.3815044]
[1723795181326,4.30628962,144.6,144.59,2.3815044]
[1723795186724,4.30628962,144.6,144.59,2.38053927]
[1723795187132,4.30628962,144.6,144.59,2.38052767]
[1723795187830,4.30628962,144.6,144.59,2.38088474]
[1723795188652,4.30628962,144.6,144.57,0.04914414]
[1723795188823,4.30628962,144.6,144.58,10.91935094]
[1723795189027,4.30628962,144.6,144.59,2.38090125]
[1723795190932,4.30628962,144.6,144.57,0.04914414]
[1723795191128,4.30628962,144.6,144.58,10.9221841]
[1723795191331,4.30628962,144.6,144.59,2.38152089]
[1723795191536,4.30628962,144.6,144.59,2.38167237]
[1723795191853,7.76358962,144.6,144.57,0.04914414]
[1723795192031,10.63,144.59,144.58,2.38170715]
[1723795192228,10.63,144.59,144.58,10.9229805]
[1723795192632,10.63,144.59,144.58,10.92294134]
[1723795193136,10.63,144.59,144.58,10.9229392]
[1723795194032,10.63,144.59,144.58,10.92221072]
[1723795194334,10.63,144.59,144.58,10.92236214]
[1723795194531,10.63,144.59,144.58,2.38166585]
[1723795195035,10.63,144.59,144.58,2.38146124]
[1723795195229,4.49038962,144.6,144.58,2.38146124]
[1723795195230,15.12038962,144.6,144.58,2.38146124]
[1723795195429,15.12038962,144.6,144.59,2.38146124]
[1723795196233,15.12038962,144.6,144.59,2.38138996]
[1723795196832,18.57768962,144.6,144.59,2.38138996]
[1723795197936,15.12038962,144.6,144.59,2.38138996]
[1723795198830,4.49038962,144.6,144.59,2.38138996]
[1723795199031,15.12038962,144.6,144.59,2.38138996]
[1723795200335,4.49038962,144.6,144.57,0.04914414]
[1723795200747,4.49038962,144.6,144.58,2.37953706]
[1723795200936,4.49038962,144.6,144.59,2.37953706]
[1723795203747,4.49038962,144.6,144.57,3.50694414]
[1723795204341,4.49038962,144.6,144.58,10.90905755]
[1723795204639,4.49038962,144.6,144.59,2.37874302]
[1723795207954,7.94768962,144.6,144.57,0.04914414]
[1723795208143,7.94768962,144.6,144.58,10.91188907]
[1723795208344,7.94768962,144.6,144.59,2.37923529]
[1723795208645,4.49038962,144.6,144.59,2.37923529]
[1723795211836,4.30628962,144.6,144.59,2.37923529]
[1723795212067,4.30628962,144.6,144.57,3.50714414]
[1723795212248,4.30628962,144.6,144.58,10.91100958]
[1723795212439,4.30628962,144.6,144.59,2.37903401]
[1723795212644,4.28628962,144.6,144.59,2.37903401]
[1723795214746,0.04628962,144.6,144.59,5.83653401]
[1723795214948,0.04628962,144.6,144.59,14.36444607]
[1723795215543,4.24,144.63,144.6,3.4572]
[1723795215743,4.24,144.63,144.61,2.37903401]
[1723795216051,4.24,144.63,144.62,2.37694526]
[1723795216244,4.24,144.63,144.6,3.4572]
[1723795216441,4.24,144.63,144.61,10.90251372]
[1723795216644,4.24,144.63,144.62,2.37694704]
[1723795216858,7.6966,144.63,144.62,2.37694704]
[1723795218151,3.4568,144.62,144.61,0.04701333]
[1723795218353,3.4568,144.62,144.61,2.42622107]
[1723795218649,4.24,144.62,144.61,2.42622107]
[1723795219549,7.6968,144.62,144.61,0.40612107]
[1723795220657,3.4575,144.6,144.55,3.4585]
[1723795220853,0.04748195,144.59,144.57,0.04618807]
[1723795221049,0.04748195,144.59,144.58,8.53513911]
[1723795222206,0.04748195,144.59,144.57,0.04618807]
[1723795222551,0.04748195,144.59,144.58,8.53662979]
[1723795224872,0.04748195,144.59,144.57,3.50408807]
[1723795225156,0.04748195,144.59,144.58,8.53477746]
[1723795226757,0.04748195,144.59,144.58,11.99257746]
[1723795229277,0.04748195,144.59,144.58,3.4578]
[1723795229462,0.04748195,144.59,144.58,11.99458358]
[1723795229762,0.04748195,144.59,144.58,8.53678358]
[1723795231554,0.04748195,144.59,144.58,10.91217051]
[1723795231758,0.04748195,144.59,144.58,14.36997051]
[1723795232964,0.04748195,144.59,144.58,5.83318693]
[1723795233163,0.04748195,144.59,144.58,14.37082843]
[1723795233666,0.04748195,144.59,144.58,10.91302843]
[1723795234763,0.04748195,144.59,144.58,14.37082843]
[1723795235665,0.23158195,144.59,144.58,14.37082843]
[1723795236266,4.24,144.66,144.58,12.17492843]
[1723795236469,4.24,144.66,144.59,25.22344439]
[1723795236672,10.3525,144.88,144.6,28.14324439]
[1723795236874,3.4544,144.73,144.61,25.76785746]
[1723795237174,6.9036,144.84,144.62,28.14324439]
[1723795237479,4.24,144.81,144.63,23.90324439]
[1723795237675,0.0698,144.8,144.66,0.04383741]
[1723795237978,4.25204449,144.8,144.67,10.91302843]
[1723795238178,4.25204449,144.8,144.68,7.44942843]
[1723795238379,4.25204449,144.8,144.69,2.37538693]
[1723795238579,4.25204449,144.8,144.7,2.37538693]
[1723795238774,4.25204449,144.8,144.68,3.4554]
[1723795238980,4.25204449,144.8,144.69,2.37052132]
[1723795239179,3.4541,144.74,144.73,0.04593527]
[1723795239376,7.6941,144.74,144.73,0.04593527]
[1723795240380,7.6941,144.74,144.68,3.4554]
[1723795240381,3.4545,144.72,144.67,3.4556]
[1723795240884,3.4545,144.72,144.68,2.37077213]
[1723795241181,3.4544,144.73,144.69,2.3707739]
[1723795241376,3.4544,144.73,144.67,3.4556]
[1723795241584,3.4544,144.73,144.68,2.3707739]
[1723795241782,0.04651772,144.72,144.7,0.05261512]
[1723795241975,3.4933531,144.72,144.7,0.05261512]
[1723795245278,228.0,144.95,144.7,0.05261512]
[1723795245479,1.2609,144.83,144.71,2.36936064]
[1723795245683,1.2609,144.83,144.72,2.36805668]
[1723795245984,1.2609,144.83,144.68,4.24]
[1723795246185,4.24,144.89,144.69,3.69868901]
[1723795246483,1.2609,144.86,144.7,2.36858901]
[1723795246788,1.2609,144.86,144.71,6.59978921]
[1723795246973,4.24,144.85,144.78,0.04866255]
[1723795247174,3.4525,144.81,144.78,0.04866255]
[1723795247377,6.9034823,144.81,144.78,0.04866255]
[1723795247779,6.9034823,144.81,144.76,3.4534]
[1723795248386,6.9034823,144.81,144.78,0.05149131]
[1723795248584,3.4509823,144.81,144.78,0.05149131]
[1723795248885,4.24,144.85,144.78,0.05149131]
[1723795249106,7.67791199,144.85,144.74,4.24]
[1723795249384,7.64578197,144.85,144.77,3.4532]
[1723795249580,7.64578197,144.85,144.69,68.0024505]
[1723795249581,7.64578197,144.85,144.73,4.24]
[1723795249782,7.64578197,144.85,144.69,61.8576505]
[1723795249982,7.64578197,144.85,144.7,6.60022976]
[1723795250187,0.05149131,144.78,144.76,0.04919521]
[1723795250377,7.66132876,144.85,144.7,3.17407397]
[1723795250583,3.4522,144.82,144.69,56.71068022]
[1723795250784,6.87214682,144.82,144.71,4.24]
[1723795250988,3.4522,144.82,144.7,4.24]
[1723795251283,6.85418165,144.82,144.71,4.24]
[1723795251489,0.05038613,144.78,144.75,0.04738212]
[1723795251690,6.85418165,144.82,144.73,4.24]
[1723795251888,3.4523,144.81,144.76,3.4533]
[1723795252083,3.4523,144.81,144.73,4.24]
[1723795252483,3.4523,144.81,144.76,3.4533]
[1723795252679,3.42864809,144.8,144.77,0.04474887]
[1723795253113,3.4523,144.81,144.73,4.24]
[1723795253284,3.4523,144.81,144.73,0.7743]
[1723795253513,3.4523,144.81,144.73,4.24]
[1723795253779,3.4301851,144.8,144.76,3.4533]
[1723795254084,4.24,144.85,144.73,0.7743]
[1723795254291,7.69919885,144.85,144.72,4.24]
[1723795254479,0.05305155,144.79,144.77,0.04539627]
[1723795254684,3.50585155,144.79,144.75,3.4536]
[1723795254885,3.4528,144.79,144.71,0.7746]
[1723795255283,3.4528,144.79,144.71,4.24]
[1723795255483,3.453,144.78,144.69,17.02549173]
[1723795255685,0.0486763,144.75,144.72,0.05199138]
[1723795255889,0.0486763,144.75,144.7,4.24]
[1723795256788,0.0486763,144.75,144.7,0.7748]
[1723795257092,0.0486763,144.75,144.71,0.04974546]
[1723795257389,0.0486763,144.75,144.7,4.26]
[1723795257791,0.0486763,144.75,144.74,3.4538]
[1723795261492,0.0486763,144.75,144.74,3.454]
[1723795268400,0.0486763,144.75,144.73,3.50649752]
[1723795268619,0.0486763,144.75,144.73,0.05239752]
[1723795270100,3.5025763,144.75,144.73,0.05239752]
[1723795271500,3.454,144.74,144.73,0.05239752]
[1723795275506,4.7383,144.74,144.73,0.05239752]
[1723795277302,1.2843,144.74,144.65,73.99678841]
[1723795277502,10.3373,145.09,144.73,5.0]
[1723795277703,3.4514,144.85,144.74,0.4784]
[1723795277913,4.62,144.95,144.74,1.6299]
[1723795278100,5.9165,144.94,144.74,1.6299]
[1723795278302,3.4513,144.86,144.79,3.4526]
[1723795278597,4.62,144.85,144.74,1.6299]
[1723795278800,0.04734217,144.84,144.8,3.4524]
[1723795279008,0.04734217,144.84,144.81,0.0484092]
[1723795279200,4.62,144.85,144.74,1.6299]
[1723795279706,8.01024706,144.85,144.75,3.49425933]
[1723795279907,8.01024706,144.85,144.74,1.6299]
[1723795280507,8.01024706,144.85,144.74,5.06023152]
[1723795280710,11.46164706,144.85,144.74,1.6299]
[1723795280911,0.04734295,144.81,144.78,0.04556029]
[1723795281312,0.04734295,144.81,144.79,3.4526]
[1723795282215,0.04734295,144.81,144.8,3.4525]
[1723795282603,8.12752431,144.88,144.74,1.6299]
[1723795282810,8.0708,144.88,144.83,3.4517]
[1723795283003,4.62,144.89,144.74,0.6783]
[1723795283213,4.62,144.89,144.7,6.9098]
[1723795283512,4.62,144.89,144.69,224.21750934]
[1723795283513,8.09126101,144.89,144.71,4.62]
[1723795283708,8.09126101,144.89,144.69,227.58777552]
[1723795283709,0.04478225,144.8,144.78,0.04960098]
[1723795284006,0.04478225,144.8,144.76,4.62]
[1723795284207,3.47126101,144.89,144.76,4.62]
[1723795284407,4.62,144.89,144.76,4.62]
[1723795284610,8.13749513,144.89,144.76,4.62]
[1723795284813,8.13749513,144.89,144.82,3.4519]
[1723795285417,3.4509,144.87,144.83,3.4517]
[1723795285608,3.49910504,144.87,144.84,0.04922399]
[1723795287716,3.4512,144.86,144.84,0.04922399]
[1723795289007,3.49910504,144.87,144.84,0.04922399]
[1723795289609,0.04820504,144.87,144.84,0.04922399]
[1723795293019,1.29590504,144.87,144.84,0.04922399]
[1723795294814,4.74680504,144.87,144.84,0.04922399]
[1723795295621,3.4511,144.86,144.84,0.04922399]
[1723795296822,4.74680504,144.87,144.84,0.04922399]
[1723795302228,3.4511,144.86,144.84,0.04922399]
[1723795303321,4.74690504,144.87,144.84,0.04922399]
[1723795303628,1.29590504,144.87,144.84,0.04922399]
[1723795303828,0.04820504,144.87,144.84,0.04922399]
[1723795304724,3.4511,144.86,144.84,0.04922399]
[1723795309428,0.04820504,144.87,144.84,0.04922399]
[1723795311022,3.49920504,144.87,144.84,0.04922399]
[1723795311239,0.04820504,144.87,144.84,0.04922399]
[1723795312431,0.04820504,144.87,144.84,3.50062399]
[1723795312833,0.04820504,144.87,144.84,0.04922399]
[1723795315934,1.2278,144.97,144.84,0.04922399]
[1723795316137,1.3061,144.97,144.84,3.50044406]
[1723795316336,3.4492,144.94,144.85,1.3344]
[1723795316537,3.42725201,144.96,144.85,1.3344]
[1723795316832,1.3061,144.97,144.88,3.4505]
[1723795317042,0.05279624,144.92,144.89,0.04417604]
[1723795317237,0.05279624,144.92,144.9,3.45]
[1723795317439,0.05279624,144.92,144.89,0.04417604]
[1723795317839,0.05279624,144.92,144.9,3.4501]
[1723795318053,0.05279624,144.92,144.89,0.04417604]
[1723795319041,0.05279624,144.92,144.9,3.45]
[1723795319344,0.05279624,144.92,144.89,0.04417604]
[1723795320042,0.05279624,144.92,144.9,3.45]
[1723795320637,0.05279624,144.92,144.91,3.4499]
[1723795321068,0.05279624,144.92,144.89,0.04417604]
[1723795321241,0.05279624,144.92,144.89,3.49447604]
[1723795321442,0.05279624,144.92,144.89,0.04417604]
[1723795321846,3.50259624,144.92,144.89,0.04417604]
[1723795322041,0.05279624,144.92,144.89,0.04417604]
[1723795322649,0.05279624,144.92,144.89,3.49437604]
[1723795323244,0.05279624,144.92,144.89,3.40257604]
[1723795324450,0.05279624,144.92,144.89,3.44945264]
[1723795325145,0.05279624,144.92,144.9,3.4501]
[1723795325454,0.05279624,144.92,144.89,0.0468766]
[1723795326058,3.4499,144.91,144.89,0.0468766]
[1723795326259,0.05279624,144.92,144.89,0.0468766]
[1723795326757,0.05279624,144.92,144.89,3.4971766]
[1723795327658,3.50249624,144.92,144.89,0.0468766]
[1723795328160,0.05279624,144.92,144.89,3.4970766]
[1723795329255,0.05279624,144.92,144.89,0.0468766]
[1723795331069,0.05279624,144.92,144.89,3.4972766]
[1723795333567,3.50249624,144.92,144.89,3.4972766]
[1723795334070,3.50249624,144.92,144.89,0.0468766]
[1723795337971,0.05279624,144.92,144.89,0.0468766]
[1723795338768,3.4499,144.91,144.89,0.0468766]
[1723795338973,0.05279624,144.92,144.89,0.0468766]
[1723795340071,3.4501,144.9,144.89,0.0468766]
[1723795344161,3.4507,144.88,144.85,14.0612]
[1723795344879,3.4505,144.89,144.86,3.4511]
[1723795345176,3.4505,144.89,144.87,10.61]
[1723795345568,3.50091461,144.89,144.87,10.61]
[1723795346066,0.05041461,144.89,144.87,14.0608]
[1723795346772,0.05041461,144.89,144.87,10.61]
[1723795349175,3.50081461,144.89,144.87,10.61]
[1723795351164,0.05041461,144.89,144.87,14.0609]
[1723795351778,3.50081461,144.89,144.87,10.61]
[1723795352276,3.4509,144.87,144.86,0.05252978]
[1723795352477,3.4509,144.87,144.86,2.39180252]
[1723795353179,3.4509,144.87,144.86,0.05252978]
[1723795353995,3.4509,144.87,144.8,1.337]
[1723795353996,3.53642765,144.89,144.8,1.337]
[1723795354181,1.3083,144.88,144.83,10.61]
[1723795354374,3.52742692,144.87,144.84,2.34063447]
[1723795354671,4.6,144.87,144.82,10.61]
[1723795354875,3.43838709,144.86,144.83,2.34106533]
[1723795355071,3.4515,144.85,144.82,10.61]
[1723795355275,3.4515,144.85,144.83,2.38856851]
[1723795355464,3.41790932,144.86,144.84,2.34082077]
[1723795355671,3.4513,144.85,144.83,0.04774774]
[1723795356073,3.4513,144.85,144.84,2.34080792]
[1723795356574,3.41790932,144.86,144.84,2.34080792]
[1723795356877,3.41790932,144.86,144.83,0.04774774]
[1723795357173,3.4513,144.85,144.84,2.33986367]
[1723795357371,3.41790932,144.86,144.83,0.04774774]
[1723795357974,3.4516,144.84,144.83,0.04774774]
[1723795358173,3.4516,144.84,144.83,2.38818212]
[1723795358977,3.41790932,144.86,144.76,4.6]
[1723795358978,3.4524,144.81,144.76,4.6]
[1723795359278,4.6,144.81,144.77,19.12474044]
[1723795359577,4.6,144.8,144.78,19.12474044]
[1723795359771,4.6,144.8,144.78,10.61]
[1723795360279,0.04828831,144.8,144.78,10.65801231]
[1723795360868,0.04828831,144.8,144.78,0.04801231]
[1723795361274,3.4528,144.79,144.78,0.04801231]
[1723795363481,0.04828831,144.8,144.78,10.65801231]
[1723795364181,3.50098831,144.8,144.78,10.65801231]
[1723795368174,3.50098831,144.8,144.78,0.04801231]
[1723795368580,3.4528,144.79,144.78,0.04801231]
[1723795371018,3.4528,144.79,144.78,10.65801231]
[1723795371283,3.50088831,144.8,144.78,10.65801231]
[1723795372274,0.04828831,144.8,144.78,10.65801231]
[1723795372675,0.04828831,144.8,144.79,10.61]
[1723795376989,4.5,144.82,144.79,10.61]
[1723795377186,4.5,144.84,144.81,10.61]
[1723795377386,3.4517,144.84,144.81,10.61]
[1723795377582,4.5,144.85,144.81,10.61]
[1723795378486,0.04775589,144.84,144.82,0.04605862]
[1723795379291,3.49945589,144.84,144.82,0.04605862]
[1723795379690,0.04775589,144.84,144.82,0.04605862]
[1723795379887,3.4518,144.83,144.82,0.04605862]
[1723795381797,3.4528,144.79,144.76,10.61]
[1723795382596,3.4528,144.79,144.77,2.33616087]
[1723795382792,3.4528,144.79,144.76,10.61]
[1723795382983,3.50194715,144.79,144.77,0.04886349]
[1723795386596,0.04914715,144.79,144.77,0.04886349]
[1723795386798,0.04914715,144.79,144.78,10.61]
[1723795388793,0.04914715,144.79,144.78,14.063]
[1723795388994,0.04914715,144.79,144.78,16.39829364]
[1723795389496,3.4522,144.82,144.79,3.4527]
[1723795389698,3.4522,144.82,144.81,10.61]
[1723795390286,4.5,144.84,144.81,10.61]
[1723795390486,3.4519,144.83,144.81,10.61]
[1723795391086,3.4519,144.83,144.81,10.65990219]
[1723795392895,3.452,144.82,144.81,10.65990219]
[1723795393100,3.452,144.82,144.81,0.04990219]
[1723795398407,3.4529,144.79,144.76,10.61]
[1723795398708,3.4526,144.8,144.76,10.61]
[1723795398910,3.4526,144.8,144.77,2.33563146]
[1723795399105,10.61,144.83,144.76,10.61]
[1723795399301,3.4527,144.8,144.78,0.04929534]
[1723795399911,3.4528,144.79,144.78,0.04929534]
[1723795416731,6.91569213,144.79,144.78,0.04929534]
[1723795418120,3.4537,144.75,144.72,12.95966815]
[1723795418324,3.4537,144.75,144.73,10.85003938]
[1723795418621,3.4537,144.75,144.74,10.85003938]